{"text_format":"3","workbook":"xlsx","n_sheets":4,"sheets":["Aloitus","Kulut","Tulot","Voiton ja tappion yhteenveto"],"not_rendered":{"charts":1},"read":"whole","date_system":"1900"}

{"sheet":"Aloitus","index":0,"n_rows":8,"n_cols":2,"rows_kept":8}
[null,"TIETOJA TÄSTÄ MALLISTA"]
[null,"Tämän tapahtumabudjettityökirjan avulla voit seurata tapahtuman tuloja ja kuluja."]
[null,"Kirjoita tapahtuman nimi ja tiedot Kulut- ja Tulot-laskentataulukoihin."]
[null,"Kulujen ja tulojen yhteissummat lasketaan automaattisesti."]
[null,"Voitto ja tappio -yhteenveto ja -kaavio päivitetään automaattisesti Voiton ja tappion yhteenveto -laskentataulukkoon."]
[null,"Huomautus: "]
[null,"Kunkin laskentataulukon sarakkeessa A annetaan lisäohjeita. Tämä teksti on piilotettu tarkoituksella. Jos haluat poistaa tekstin, valitse sarake A ja valitse sitten POISTA. Jos haluat tuoda tekstin näkyviin, valitse sarake A ja muuta sitten fonttiväriä."]
[null,"Jos haluat lisätietoja jostakin taulukosta, paina kyseisessä taulukossa VAIHTO ja sitten F10, valitse TAULUKKO-vaihtoehto ja valitse sitten VAIHTOEHTOINEN TEKSTI."]

{"sheet":"Kulut","index":1,"n_rows":32,"n_cols":8,"rows_kept":32,"merged":[[0,1,0,4],[2,1,3,1]]}
["Kirjoita kunkin luokan arvioidut ja toteutuneet kulut laskentataulukon vastaaviin taulukkoihin, ja kirjoita tapahtuman nimi soluun D1 tämän ja muiden laskentataulukoiden mukauttamiseksi. Tämän laskentataulukon otsikko on solussa H1. Tämän sarakkeen soluissa on hyödyllisiä ohjeita tämän laskentataulukon käyttöön. Seuraava ohje on solussa A3.","Budjetti tapahtumalle Tapahtuman nimi",{"$nulls":5},"KULUT"]
[]
["Kulut yhteensä -otsikko on solussa oikealla, Arvioidut kulut -otsikko solussa G3 ja Todelliset kulut -otsikko solussa H3.","KULUT YHTEENSÄ",{"$nulls":4},"Arvio","Todellinen"]
["Arvioidut kulut yhteensä solussa G4 ja Todelliset kulut yhteensä solussa H4 lasketaan automaattisesti. Seuraava ohje on solussa A6.",{"$nulls":5},{"$f":"SUM(C11,C19,C25,C32,G11,G19,G24)","v":{"v":882,"d":"882.00 €"}},{"$f":"SUM(D11,D19,D25,D32,H11,H19,H24)","v":{"v":333,"d":"333.00 €"}}]
[]
["Kirjoita tilasta aiheutuvat kulut oikealla olevasta solusta alkavaan taulukkoon ja virvokkeista aiheutuvat kulut solusta F6 alkavaan taulukkoon. Seuraava ohje on solussa A13.","Tila","Arvio","Toteutunut",null,"Virvokkeet","Arvio","Todellinen"]
[null,"Huoneiden ja tilojen hinnat",{"v":500,"d":"500.00 €"},null,null,"Ruoka"]
[null,"Tilan henkilökunta",{"$nulls":3},"Juomat",{"v":20,"d":"20.00 €"}]
[null,"Laitteet",{"$nulls":3},"Liinavaatteet",null,{"v":20,"d":"20.00 €"}]
[null,"Pöydät ja tuolit",{"$nulls":3},"Henkilökunta ja palvelurahat"]
[null,"Summa",{"$f":"SUBTOTAL(109,SiteExpenses[Arvio])","v":{"v":500,"d":"500.00 €"}},{"$f":"SUBTOTAL(109,SiteExpenses[Toteutunut])","v":{"v":0,"d":"0.00 €"}},null,"Summa",{"$f":"SUBTOTAL(109,RefreshmentsExpenses[Arvio])","v":{"v":20,"d":"20.00 €"}},{"$f":"SUBTOTAL(109,RefreshmentsExpenses[Todellinen])","v":{"v":20,"d":"20.00 €"}}]
[]
["Kirjoita koristeista aiheutuvat kulut oikealla olevasta solusta alkavaan taulukkoon ja ohjelmasta aiheutuvat kulut solusta F13 alkavaan taulukkoon. Seuraava ohje on solussa A21.","Koristeet","Arvio","Todellinen",null,"Ohjelma","Arvio","Todellinen"]
[null,"Kukat",{"v":200,"d":"200.00 €"},{"v":300,"d":"300.00 €"},null,"Esiintyjät"]
[null,"Kynttilät",{"$nulls":3},"Kaiuttimet",{"v":30,"d":"30.00 €"}]
[null,"Valaistus",{"$nulls":3},"Matkakulut"]
[null,"Ilmapallot",{"$nulls":3},"Hotelli"]
[null,"Paperitarvikkeet",{"$nulls":3},"Muut"]
[null,"Summa",{"$f":"SUBTOTAL(109,DecorationsExpenses[Arvio])","v":{"v":200,"d":"200.00 €"}},{"$f":"SUBTOTAL(109,DecorationsExpenses[Todellinen])","v":{"v":300,"d":"300.00 €"}},null,"Summa",{"$f":"SUBTOTAL(109,ProgramExpenses[Arvio])","v":{"v":30,"d":"30.00 €"}},{"$f":"SUBTOTAL(109,ProgramExpenses[Todellinen])","v":{"v":0,"d":"0.00 €"}}]
[]
["Kirjoita tiedotuksesta aiheutuvat kulut oikealla olevasta solusta alkavaan taulukkoon ja palkinnoista aiheutuvat kulut solusta F21 alkavaan taulukkoon. Seuraava ohje on solussa A27.","Tiedotus","Arvio","Todellinen",null,"Palkinnot","Arvio","Todellinen"]
[null,"Grafiikat",{"$nulls":3},"Nauhat/kyltit/pokaalit"]
[null,"Kopiot/tulosteet",{"v":20,"d":"20.00 €"},null,null,"Lahjat",{"v":100,"d":"100.00 €"}]
[null,"Postimaksut",{"$nulls":3},"Summa",{"$f":"SUBTOTAL(109,PrizesExpenses[Arvio])","v":{"v":100,"d":"100.00 €"}},{"$f":"SUBTOTAL(109,PrizesExpenses[Todellinen])","v":{"v":0,"d":"0.00 €"}}]
[null,"Summa",{"$f":"SUBTOTAL(109,PublicityExpenses[Arvio])","v":{"v":20,"d":"20.00 €"}},{"$f":"SUBTOTAL(109,PublicityExpenses[Todellinen])","v":{"v":0,"d":"0.00 €"}}]
[]
["Kirjoita muut kulut oikealla olevasta solusta alkavaan taulukkoon.","Sekalaiset","Arvio","Todellinen"]
[null,"Puhelin",null,{"v":13,"d":"13.00 €"}]
[null,"Liikenne",{"v":12,"d":"12.00 €"}]
[null,"Paperitavarat"]
[null,"Faksipalvelut"]
[null,"Summa",{"$f":"SUBTOTAL(109,MiscellaneousExpenses[Arvio])","v":{"v":12,"d":"12.00 €"}},{"$f":"SUBTOTAL(109,MiscellaneousExpenses[Todellinen])","v":{"v":13,"d":"13.00 €"}}]

{"sheet":"Tulot","index":2,"n_rows":29,"n_cols":7,"rows_kept":29,"merged":[[0,1,0,3],[2,1,3,1]]}
["Kirjoita kunkin luokan arvioidut ja toteutuneet tulot niitä vastaaviin taulukoihin tässä laskentataulukossa. Tämän laskentataulukon otsikko päivittyy automaattisesti oikealla oleviin soluihin. Otsikko on solussa G1. Tämän sarakkeen soluissa on hyödyllisiä ohjeita tämän laskentataulukon käyttöön. Seuraava ohje on solussa A3.",{"$f":"Kulut!B1","v":"Budjetti tapahtumalle Tapahtuman nimi"},{"$nulls":4},"TULOT"]
[]
["Tulot yhteensä -otsikko on solussa oikealla, Arvio tulot -otsikko solussa F3 ja Todellinen tulot -otsikko solussa G3.","TULOT YHTEENSÄ",{"$nulls":3},"Arvio","Todellinen"]
["Arvioidut tulot yhteensä solussa F4 ja Todelliset tulot yhteensä solussa G4 lasketaan automaattisesti.",{"$nulls":4},{"$f":"SUM(Sisäänpääsy[[#Totals],[Arvioidut tulot]],OhjelmanMainokset[[#Totals],[Arvioidut tulot]],ExhibitorsAndVendors[[#Totals],[Arvioidut tulot]],MyydytKohteet[[#Totals],[Arvioidut tulot]])","v":{"v":1936,"d":"1,936.00 €"}},{"$f":"SUM(Sisäänpääsy[[#Totals],[Todelliset tulot]],OhjelmanMainokset[[#Totals],[Todelliset tulot]],ExhibitorsAndVendors[[#Totals],[Todelliset tulot]],MyydytKohteet[[#Totals],[Todelliset tulot]])","v":{"v":1831,"d":"1,831.00 €"}}]
["Sisäänpääsy-selite on solussa oikealla.","SISÄÄNPÄÄSY"]
["Kirjoita sisäänpääsylippujen arvioitu ja todellinen määrä sekä lippujen hinnat oikealla olevasta solusta alkavaan taulukkoon. Sisäänpääsyn arvioidut ja todelliset tulot lasketaan automaattisesti. Seuraava ohje on solussa A11.","Arvioitu määrä","Todellinen määrä","Tyyppi","Hinta","Arvioidut tulot","Todelliset tulot"]
[null,300,278,"Aikuiset @",{"v":5,"d":"5.00 €"},{"$f":"B7*E7","v":{"v":1500,"d":"1,500.00 €"}},{"$f":"C7*E7","v":{"v":1390,"d":"1,390.00 €"}}]
[null,197,195,"Lapset @",{"v":2,"d":"2.00 €"},{"$f":"B8*E8","v":{"v":394,"d":"394.00 €"}},{"$f":"C8*E8","v":{"v":390,"d":"390.00 €"}}]
[null,42,51,"Muut @",{"v":1,"d":"1.00 €"},{"$f":"B9*E9","v":{"v":42,"d":"42.00 €"}},{"$f":"C9*E9","v":{"v":51,"d":"51.00 €"}}]
[null,"Summa",{"$nulls":3},{"$f":"SUBTOTAL(109,Sisäänpääsy[Arvioidut tulot])","v":{"v":1936,"d":"1,936.00 €"}},{"$f":"SUBTOTAL(109,Sisäänpääsy[Todelliset tulot])","v":{"v":1831,"d":"1,831.00 €"}}]
["Ohjelman mainokset -selite on solussa oikealla.","OHJELMAN MAINOKSET"]
["Kirjoita ohjelman mainosten arvioitu ja todellinen määrä sekä mainosten hinnat oikealla olevasta solusta alkavaan taulukkoon. Mainosten arvioidut ja todelliset tulot lasketaan automaattisesti. Seuraava ohje on solussa A17.","Arvioitu määrä","Todellinen määrä","Tyyppi","Hinta","Arvioidut tulot","Todelliset tulot"]
[null,12,null,"Kansilehdet @",null,{"$f":"B13*E13","v":{"v":0,"d":"0.00 €"}},{"$f":"C13*E13","v":{"v":0,"d":"0.00 €"}}]
[null,null,158,"Puolikkaat sivut @",null,{"$f":"B14*E14","v":{"v":0,"d":"0.00 €"}},{"$f":"C14*E14","v":{"v":0,"d":"0.00 €"}}]
[null,4,null,"Neljännessivut @",null,{"$f":"B15*E15","v":{"v":0,"d":"0.00 €"}},{"$f":"C15*E15","v":{"v":0,"d":"0.00 €"}}]
[null,"Summa",{"$nulls":3},{"$f":"SUBTOTAL(109,OhjelmanMainokset[Arvioidut tulot])","v":{"v":0,"d":"0.00 €"}},{"$f":"SUBTOTAL(109,OhjelmanMainokset[Todelliset tulot])","v":{"v":0,"d":"0.00 €"}}]
["Näytteilleasettajat tai Myyjät selite on oikealla olevassa solussa.","NÄYTTEILLEASETTAJAT/MYYJÄT"]
["Kirjoita näytteilleasettajien ja myyjien arvioitu ja todellinen määrä sekä kojujen hinnat oikealla olevasta solusta alkavaan taulukkoon. Arvioidut ja todelliset tulot lasketaan automaattisesti. Seuraava ohje on solussa A23.","Arvioitu määrä","Todellinen määrä","Tyyppi","Hinta","Arvioidut tulot","Todelliset tulot"]
[null,23,null,"Suuret kojut @",null,{"$f":"B19*E19","v":{"v":0,"d":"0.00 €"}},{"$f":"C19*E19","v":{"v":0,"d":"0.00 €"}}]
[null,354,null,"Keskisuuret kojut @",null,{"$f":"B20*E20","v":{"v":0,"d":"0.00 €"}},{"$f":"C20*E20","v":{"v":0,"d":"0.00 €"}}]
[null,56,null,"Pienet kojut @",null,{"$f":"B21*E21","v":{"v":0,"d":"0.00 €"}},{"$f":"C21*E21","v":{"v":0,"d":"0.00 €"}}]
[null,"Summa",{"$nulls":3},{"$f":"SUBTOTAL(109,ExhibitorsAndVendors[Arvioidut tulot])","v":{"v":0,"d":"0.00 €"}},{"$f":"SUBTOTAL(109,ExhibitorsAndVendors[Todelliset tulot])","v":{"v":0,"d":"0.00 €"}}]
["Myydyt kohteet -selite on solussa oikealla.","MYYDYT KOHTEET"]
["Kirjoita myytyjen kohteiden arvioitu ja todellinen määrä sekä hinnat oikealla olevasta solusta alkavaan taulukkoon. Arvioidut ja todelliset tulot lasketaan automaattisesti.","Arvioitu määrä","Todellinen määrä","Tyyppi","Hinta","Arvioidut tulot","Todelliset tulot"]
[{"$nulls":3},"Kohteet @",null,{"$f":"B25*E25","v":{"v":0,"d":"0.00 €"}},{"$f":"C25*E25","v":{"v":0,"d":"0.00 €"}}]
[null,123,null,"Kohteet @",null,{"$f":"B26*E26","v":{"v":0,"d":"0.00 €"}},{"$f":"C26*E26","v":{"v":0,"d":"0.00 €"}}]
[{"$nulls":3},"Kohteet @",null,{"$f":"B27*E27","v":{"v":0,"d":"0.00 €"}},{"$f":"C27*E27","v":{"v":0,"d":"0.00 €"}}]
[null,13,null,"Kohteet @",null,{"$f":"B28*E28","v":{"v":0,"d":"0.00 €"}},{"$f":"C28*E28","v":{"v":0,"d":"0.00 €"}}]
[null,"Summa",{"$nulls":3},{"$f":"SUBTOTAL(109,MyydytKohteet[Arvioidut tulot])","v":{"v":0,"d":"0.00 €"}},{"$f":"SUBTOTAL(109,MyydytKohteet[Todelliset tulot])","v":{"v":0,"d":"0.00 €"}}]

{"sheet":"Voiton ja tappion yhteenveto","index":3,"n_rows":8,"n_cols":7,"rows_kept":8,"merged":[[0,1,0,3],[2,4,11,6]]}
["Yhteenveto tuloista ja menoista ja kaavio, jossa näkyy kulut ja menot yhteensä, päivitetään automaattisesti tähän laskentataulukkoon. Tämän laskentataulukon otsikko päivittyy automaattisesti oikealla oleviin soluihin. Otsikko on soluissa G1 ja G2. Tämän sarakkeen soluissa on hyödyllisiä ohjeita tämän laskentataulukon käyttöön. Seuraava ohje on solussa A3.",{"$f":"Kulut!B1","v":"Budjetti tapahtumalle Tapahtuman nimi"},{"$nulls":4},"TUOTTO "]
[{"$nulls":6},"Tappion yhteenveto"]
["Solussa E3 on palkkikaavio, jossa vertaillaan arvioituja tuloja ja menoja sekä todellisia tuloja ja menoja.",{"$nulls":3},"Tässä solussa on palkkikaavio, jossa vertaillaan arvioituja tuloja ja menoja sekä todellisia tuloja ja menoja."]
["Yhteenvetotaulukko päivittyy automaattisesti ja alkaa oikealla olevasta solusta. Seuraava ohje on solussa A8."," Yhteensä","Arvio","Todellinen"]
[null,"Tulot yhteensä",{"$f":"Tulot!F4","v":{"v":1936,"d":"1,936.00 €"}},{"$f":"Tulot!G4","v":{"v":1831,"d":"1,831.00 €"}}]
[null,"Kulut yhteensä",{"$f":"Kulut!G4","v":{"v":882,"d":"882.00 €"}},{"$f":"Kulut!H4","v":{"v":333,"d":"333.00 €"}}]
[]
["Arvioitu tuotto tai tappio yhteensä lasketaan automaattisesti soluun C8 ja todellinen tuotto tai tappio soluun D8.","Yhteenlaskettu tuotto              (tai tappio)",{"$f":"C5-C6","v":{"v":1054,"d":"1,054.00 €"}},{"$f":"D5-D6","v":{"v":1498,"d":"1,498.00 €"}}]